{"text_format":"1","workbook":"xlsx","n_sheets":8,"sheets":["Macros","Template","Example One PO","Example Multiple PO","Instruction","How to make superscript","TEMPLATE_TABULAR","CHECKBOXES_TABULAR"],"not_rendered":{"charts":0,"images":3,"macros":1,"external_links":1,"defined_names":16,"comments":0,"pivot_tables":0},"unopened":[],"bounds":{"document_bytes":16777216,"sheet_cells":100000,"rows_first":2000,"rows_last":500,"rows_between":2000,"halvings":0,"cell_chars":16384,"cell_head_chars":4096},"cells_cut":0,"cells_raw":0,"read":"whole","date_system":"1900"}

{"sheet":"Macros","index":0,"n_rows":31,"n_cols":1,"rows_kept":31,"cut":false,"hidden":false,"merged":[[10,0,27,13],[30,0,47,13]]}
[]
[]
[]
[]
[]
[]
[]
[]
[]
[]
["Por favor, ative as macros para continuar com o formulário de TechnipFMC Global Notification de Intervention Point"]
[]
[]
[]
[]
[]
[]
[]
[]
[]
[]
[]
[]
[]
[]
[]
[]
[]
[]
[]
["Please Enable Macros to Continue with TechnipFMC Global Notification of Intervention Point Form"]

{"sheet":"Template","index":1,"n_rows":44,"n_cols":45,"rows_kept":44,"cut":false,"hidden":true,"merged":[[33,20,33,31],[22,4,23,8],[22,9,23,9],[4,21,4,24],[13,25,13,46],[16,10,17,13],[16,39,17,41],[13,6,13,20],[16,14,17,15],[16,20,17,20],[11,25,11,46],[12,25,12,46],[12,21,12,24],[11,6,11,20],[13,21,13,24],[15,27,15,31],[15,39,15,41],[15,22,15,26],[15,14,15,15],[16,16,17,19],[15,4,15,8],[16,4,17,8],[16,9,17,9],[11,1,11,5],[12,1,12,5],[2,41,2,42],[2,44,2,46],[0,32,0,34],[0,36,0,37],[0,38,0,39],[15,16,15,19],[16,21,17,21],[6,21,6,24],[5,25,5,33],[5,34,5,37],[4,38,4,46],[5,38,5,46],[7,21,7,24],[8,21,8,24],[10,21,10,46],[5,21,5,24],[4,25,4,33],[4,6,4,20],[6,25,6,46],[7,25,7,46],[8,25,8,46],[4,1,4,5],[4,34,4,35],[20,27,21,31],[5,1,10,5],[5,6,10,20],[15,32,15,36],[16,32,17,36],[18,32,19,36],[20,22,21,26],[11,21,11,24],[12,6,12,20],[18,4,19,8],[18,9,19,9],[20,4,21,8],[20,9,21,9],[16,1,17,1],[13,1,13,5],[15,10,15,13],[20,44,21,46],[24,9,25,9],[28,20,29,20],[43,1,43,46],[28,39,29,41],[24,42,25,43],[26,42,27,43],[28,42,29,43],[32,32,32,46],[33,32,33,36],[33,37,33,46],[26,39,27,41],[26,37,27,38],[28,37,29,38],[24,37,25,38],[36,1,36,4],[36,5,36,21],[26,2,27,3],[26,22,27,26],[35,1,35,4],[24,2,25,3],[26,1,27,1],[28,4,29,8],[26,10,27,13],[28,9,29,9],[26,4,27,8],[26,9,27,9],[26,20,27,20],[26,21,27,21],[24,1,25,1],[34,1,34,46],[22,39,23,41],[37,1,37,4],[33,1,33,14],[31,16,31,19],[31,22,31,24],[31,25,31,31],[31,32,31,36],[31,37,31,46],[33,15,33,19],[22,22,23,26],[24,22,25,26],[22,2,23,3],[26,16,27,19],[24,4,25,8],[22,27,23,31],[28,10,29,13],[28,14,29,15],[38,1,38,4],[37,5,37,21],[38,5,38,17],[24,21,25,21],[26,14,27,15],[22,16,23,19],[24,16,25,19],[20,16,21,19],[24,20,25,20],[20,20,21,20],[28,2,29,3],[28,1,29,1],[35,10,35,15],[22,1,23,1],[22,14,23,15],[24,10,25,13],[20,14,21,15],[24,14,25,15],[22,20,23,20],[20,21,21,21],[22,21,23,21],[28,16,29,19],[20,2,21,3],[32,1,32,14],[41,1,41,4],[41,5,41,21],[42,1,42,4],[42,5,42,17],[42,18,42,19],[42,20,42,21],[39,1,39,4],[39,10,39,15],[39,16,39,21],[40,1,40,4],[40,5,40,21],[39,27,42,46],[38,27,38,40],[37,27,37,46],[38,41,38,42],[28,21,29,21],[35,22,35,25],[38,43,38,46],[28,22,29,26],[36,22,36,26],[35,37,35,46],[37,22,37,26],[38,22,38,26],[35,30,35,36],[39,22,42,26],[35,16,35,21],[38,18,38,19],[38,20,38,21],[28,27,29,31],[35,27,35,29],[32,15,32,31],[30,1,30,46],[31,1,31,3],[31,4,31,8],[31,10,31,15],[1,12,1,37],[0,41,0,42],[0,43,0,46],[22,44,23,46],[16,42,17,43],[20,42,21,43],[18,20,19,20],[18,44,19,46],[15,42,15,43],[15,44,15,46],[15,37,15,38],[22,10,23,13],[20,10,21,13],[18,21,19,21],[16,22,17,26],[18,39,19,41],[18,27,19,31],[16,44,17,46],[16,37,17,38],[18,37,19,38],[18,22,19,26],[18,14,19,15],[18,16,19,19],[18,10,19,13],[2,19,2,29],[16,27,17,31],[26,27,27,31],[36,27,36,46],[24,44,25,46],[26,44,27,46],[28,44,29,46],[24,39,25,41],[20,1,21,1],[15,2,15,3],[16,2,17,3],[18,2,19,3],[18,1,19,1],[18,42,19,43],[22,37,23,38],[20,37,21,38],[22,42,23,43],[24,27,25,31],[20,39,21,41],[20,32,21,36],[22,32,23,36],[24,32,25,36],[26,32,27,36],[28,32,29,36]]}
[null,null,null,null,null,null,null,null,null,null,null,null,null,null,null,null,null,null,null,null,null,null,null,null,null,null,null,null,null,null,null,null,null,null,null,null,null,null,null,null,null,"Doc No:",null,"GTF-COR-21014 "]
[null,null,null,null,null,null,null,null,null,null,null,null,"NOTIFICAÇÃO DE PONTO DE INTERVENÇÃO",null,null,null,null,null,null,null,null,null,null,null,null,null,null,null,null,null,null,null,null,null,null,null,null,null,null,null,null,"This replaces LST10086668"]
[null,null,null,null,null,null,null,null,null,null,null,null,null,null,null,null,null,null,null,null,null,null,null,null,null,null,null,null,null,null,null,null,null,null,null,null,null,null,null,null,null,"Rev:",null,2,"Page 1 of 1"]
[null,"Seção A: Preenchido pelo Fornecedor"]
[null,"Nome do Fornecedor:",null,null,null,null,"\"\"",null,null,null,null,null,null,null,null,null,null,null,null,null,null,"Notificação no.:",null,null,null,"\"\"",null,null,null,null,null,null,null,null,"Rev.:",null,"\"\"","Data:","\"\"dd-mmm-yyyy"]
[null,"Endereço:",null,null,null,null,null,null,null,null,null,null,null,null,null,null,null,null,null,null,null,"Nome do Projeto TechnipFMC:",null,null,null,null,null,null,null,null,null,null,null,null,"Projeto TechnipFMC no.:"]
[null,null,null,null,null,null,null,null,null,null,null,null,null,null,null,null,null,null,null,null,null,"Nome do Cliente TechnipFMC:"]
[null,null,null,null,null,null,null,null,null,null,null,null,null,null,null,null,null,null,null,null,null,"Pedido de Compra:",null,null,null,"\"\""]
[null,null,null,null,null,null,null,null,null,null,null,null,null,null,null,null,null,null,null,null,null,"ITP/MPQ/MPS Doc. No./Rev:"]
[]
[null,null,null,null,null,null,null,null,null,null,null,null,null,null,null,null,null,null,null,null,null,"Informações de contato do Subfornecedor (quando aplicável)"]
[null,"Pessoa de Contato:",null,null,null,null,null,null,null,null,null,null,null,null,null,null,null,null,null,null,null,"Pessoa de Contato:"]
[null,"E-mail:",null,null,null,null,null,null,null,null,null,null,null,null,null,null,null,null,null,null,null,"E-mail:"]
[null,"Telefone:",null,null,null,null,null,null,null,null,null,null,null,null,null,null,null,null,null,null,null,"Telefone:"]
[]
[null,"Atividade","Item do PO",null,"Peça / Descrição do Produto",null,null,null,null,"Número da peça & REV","Número de série(s) ",null,null,null,"Quantidade",null,"Intervenção TechnipFMC",null,null,null,"Intervenção Cliente da TechnipFMC","Interv. do Órgão Certificador","Atividade Descrição \n(+ITP/MPS ID, se aplicável)",null,null,null,null,"Empresa & Endereço do local da atividade",null,null,null,null,"Procedimento no.",null,null,null,null,"Rev.",null,"Data de Início",null,null,"Hora",null,"Duração"]
[null,"A",null,null,null,null,null,null,null,null,null,null,null,null,null,null,null,null,null,null,null,null,null,null,null,null,null,null,null,null,null,null,null,null,null,null,null,null,null,"dd-mmm-yyyy"]
[]
[null,"B",null,null,null,null,null,null,null,null,null,null,null,null,null,null,null,null,null,null,null,null,null,null,null,null,null,null,null,null,null,null,null,null,null,null,null,null,null,"dd-mmm-yyyy"]
[]
[null,"C",null,null,null,null,null,null,null,null,null,null,null,null,null,null,null,null,null,null,null,null,null,null,null,null,null,null,null,null,null,null,null,null,null,null,null,null,null,"dd-mmm-yyyy"]
[]
[null,"D",null,null,null,null,null,null,null,null,null,null,null,null,null,null,null,null,null,null,null,null,null,null,null,null,null,null,null,null,null,null,null,null,null,null,null,null,null,"dd-mmm-yyyy"]
[]
[null,"E",null,null,null,null,null,null,null,null,null,null,null,null,null,null,null,null,null,null,null,null,null,null,null,null,null,null,null,null,null,null,null,null,null,null,null,null,null,"dd-mmm-yyyy"]
[]
[null,"F ",null,null,null,null,null,null,null,null,null,null,null,null,null,null,null,null,null,null,null,null,null,null,null,null,null,null,null,null,null,null,null,null,null,null,null,null,null,"dd-mmm-yyyy"]
[]
[null,"G",null,null,null,null,null,null,null,null,null,null,null,null,null,null,null,null,null,null,null,null,null,null,null,null,null,null,null,null,null,null,null,null,null,null,null,null,null,"dd-mmm-yyyy"]
[]
[null,"Requisitos mínimos de EPI do local:"]
[null,"Sapatos de \nsegurança               ",null,null,"Óculos de \nsegurança",null,null,null,null,"Capacete","Protetor auricular",null,null,null,null,null,"Macacões",null,null,null,"Colete de alta visibilidade","Luvas","Outra(o):",null,null,null,null,null,null,null,null,null,"Comentários adicionais do EPI:"]
[null,"Observações",null,null,null,null,null,null,null,null,null,null,null,null,null,"Capacidade de inspeção remota disponível (se aplicável) / comentário",null,null,null,null,null,null,null,null,null,null,null,null,null,null,null,null,"Equipamento de Teste disponível (caso aplicável) / comentário"]
[null,null,null,null,null,null,null,null,null,null,null,null,null,null,null,"          Sim\n          Não",null,null,null,null,null,null,null,null,null,null,null,null,null,null,null,null,"          Sim\n          Não"]
[null,"Seção B: Preenchido somente se TechnipFMC ou Cliente decidirem não acompanhar"]
[null,"Uso da TechnipFMC apenas:",null,null,null,null,null,"Sem testemunho",null,null,"Atividade(s) que não será testemunhada: ",null,null,null,null,null,null,null,null,null,null,null,"Uso do Cliente apenas:",null,null,null,null,"Sem testemunho",null,null,"Atividade(s) que não será testemunhada: "]
[null,"Motivo da desistência:",null,null,null,null,null,null,null,null,null,null,null,null,null,null,null,null,null,null,null,null,"Motivo da desistência:"]
[null,"Nome:",null,null,null,null,null,null,null,null,null,null,null,null,null,null,null,null,null,null,null,null,"Nome:"]
[null,"Função:",null,null,null,null,null,null,null,null,null,null,null,null,null,null,null,null,"Data:",null,"dd-mmm-yyyy",null,"Função:",null,null,null,null,null,null,null,null,null,null,null,null,null,null,null,null,null,null,"Data:",null,"dd-mmm-yyyy"]
[null,"Uso do Órgão Certificador apenas:",null,null,null,null,null,"Sem testemunho",null,null,"Atividade(s) que não será testemunhada: ",null,null,null,null,null,null,null,null,null,null,null,"Observações:"]
[null,"Motivo da desistência:"]
[null,"Nome:"]
[null,"Função:",null,null,null,null,null,null,null,null,null,null,null,null,null,null,null,null,"Data:",null,"dd-mmm-yyyy"]
[null,"This documents is the property of TechnipFMC and is not to be reproduced or disclosed to any party without the written consent of TechnipFMC. \nUser is responsible for verification of released revision status on document copy."]

{"sheet":"Example One PO","index":2,"n_rows":37,"n_cols":45,"rows_kept":37,"cut":false,"hidden":true,"merged":[[0,32,0,34],[0,36,0,37],[0,38,0,39],[0,41,0,42],[0,43,0,46],[1,12,1,37],[1,41,1,46],[7,21,7,24],[7,25,7,46],[2,19,2,29],[2,41,2,42],[2,44,2,46],[4,1,4,5],[4,6,4,20],[4,21,4,24],[4,25,4,33],[4,34,4,35],[4,38,4,46],[12,1,12,5],[12,6,12,20],[12,21,12,24],[12,25,12,46],[13,1,13,5],[13,6,13,20],[13,21,13,24],[13,25,13,46],[8,21,8,24],[8,25,8,46],[9,21,9,46],[10,21,10,46],[11,1,11,5],[11,6,11,20],[11,21,11,24],[11,25,11,46],[5,1,10,5],[5,6,10,20],[5,21,5,24],[5,25,5,33],[5,34,5,37],[5,38,5,46],[6,21,6,24],[6,25,6,46],[15,27,15,31],[15,32,15,36],[15,37,15,38],[15,39,15,41],[15,42,15,43],[15,44,15,46],[15,2,15,3],[15,4,15,8],[15,10,15,13],[15,14,15,15],[15,16,15,19],[15,22,15,26],[16,27,16,31],[16,32,16,36],[16,37,16,38],[16,39,16,41],[16,42,16,43],[16,44,16,46],[16,2,16,3],[16,4,16,8],[16,10,16,13],[16,14,16,15],[16,16,16,19],[16,22,16,26],[17,27,17,31],[17,32,17,36],[17,37,17,38],[17,39,17,41],[17,42,17,43],[17,44,17,46],[17,2,17,3],[17,4,17,8],[17,10,17,13],[17,14,17,15],[17,16,17,19],[17,22,17,26],[18,27,18,31],[18,32,18,36],[18,37,18,38],[18,39,18,41],[18,42,18,43],[18,44,18,46],[18,2,18,3],[18,4,18,8],[18,10,18,13],[18,14,18,15],[18,16,18,19],[18,22,18,26],[19,27,19,31],[19,32,19,36],[19,37,19,38],[19,39,19,41],[19,42,19,43],[19,44,19,46],[19,2,19,3],[19,4,19,8],[19,10,19,13],[19,14,19,15],[19,16,19,19],[19,22,19,26],[20,27,20,31],[20,32,20,36],[20,37,20,38],[20,39,20,41],[20,42,20,43],[20,44,20,46],[20,2,20,3],[20,4,20,8],[20,10,20,13],[20,14,20,15],[20,16,20,19],[20,22,20,26],[21,27,21,31],[21,32,21,36],[21,37,21,38],[21,39,21,41],[21,42,21,43],[21,44,21,46],[21,2,21,3],[21,4,21,8],[21,10,21,13],[21,14,21,15],[21,16,21,19],[21,22,21,26],[22,27,22,31],[22,32,22,36],[22,37,22,38],[22,39,22,41],[22,42,22,43],[22,44,22,46],[22,2,22,3],[22,4,22,8],[22,10,22,13],[22,14,22,15],[22,16,22,19],[22,22,22,26],[25,1,25,14],[25,15,25,31],[25,32,25,46],[26,1,26,14],[26,15,26,19],[26,20,26,31],[26,32,26,36],[26,37,26,46],[23,1,23,46],[24,1,24,3],[24,4,24,8],[24,10,24,15],[24,16,24,19],[24,22,24,24],[24,25,24,31],[24,32,24,36],[24,37,24,46],[29,1,29,4],[29,5,29,21],[29,22,29,26],[29,27,29,46],[30,1,30,4],[30,5,30,21],[30,22,30,26],[30,27,30,46],[27,1,27,46],[28,1,28,4],[28,5,28,9],[28,10,28,15],[28,16,28,21],[28,22,28,25],[28,27,28,29],[28,30,28,36],[28,37,28,46],[36,1,36,46],[34,1,34,4],[34,5,34,21],[35,1,35,4],[35,5,35,17],[35,18,35,19],[35,20,35,21],[31,41,31,42],[31,43,31,46],[32,1,32,4],[32,5,32,9],[32,10,32,15],[32,16,32,21],[32,22,35,26],[32,27,35,46],[33,1,33,4],[33,5,33,21],[31,1,31,4],[31,5,31,17],[31,18,31,19],[31,20,31,21],[31,22,31,26],[31,27,31,40]]}
[null,null,null,null,null,null,null,null,null,null,null,null,null,null,null,null,null,null,null,null,null,null,null,null,null,null,null,null,null,null,null,null,null,null,null,null,null,null,null,null,null,"Doc No:",null,"GTF-COR-21014"]
[null,null,null,null,null,null,null,null,null,null,null,null,"NOTIFICATION OF INTERVENTION POINT FORM",null,null,null,null,null,null,null,null,null,null,null,null,null,null,null,null,null,null,null,null,null,null,null,null,null,null,null,null,"This replaces LST10086668"]
[null,null,null,null,null,null,null,null,null,null,null,null,null,null,null,null,null,null,null,null,null,null,null,null,null,null,null,null,null,null,null,null,null,null,null,null,null,null,null,null,null,"Rev:",null,2,"Page 1 of 1"]
[null,"Section A: To be completed by Supplier"]
[null,"Supplier name:",null,null,null,null,"Supplier Corporation Ltd.",null,null,null,null,null,null,null,null,null,null,null,null,null,null,"Notification no.:",null,null,null,"SC-NOT-13-001",null,null,null,null,null,null,null,null,"Rev.:",null,0,"Date:","2021-01-01"]
[null,"Supplier address:",null,null,null,null,"Quality Avenue 4\n1234 Supplier City\nHigh Region, Noland",null,null,null,null,null,null,null,null,null,null,null,null,null,null,"TechnipFMC Proj name:",null,null,null,"Laggan Tormore",null,null,null,null,null,null,null,null,"TechnipFMC Proj no:",null,null,null,"SS-K20005"]
[null,null,null,null,null,null,null,null,null,null,null,null,null,null,null,null,null,null,null,null,null,"TechnipFMC Client name:",null,null,null,"Client Name"]
[null,null,null,null,null,null,null,null,null,null,null,null,null,null,null,null,null,null,null,null,null,"TechnipFMC Purchase order:",null,null,null,47123456]
[null,null,null,null,null,null,null,null,null,null,null,null,null,null,null,null,null,null,null,null,null,"ITP/MPQ/MPS Doc. No./Rev:",null,null,null,"ITP-87654321"]
[]
[null,null,null,null,null,null,null,null,null,null,null,null,null,null,null,null,null,null,null,null,null,"Subcontractor contact information (when applicable)"]
[null,"Contact person:",null,null,null,null,"John Fabricator",null,null,null,null,null,null,null,null,null,null,null,null,null,null,"Contact person:",null,null,null,"Clifford Welder"]
[null,"E-mail address:",null,null,null,null,"j.fabricator@supplier-corp.ltd",null,null,null,null,null,null,null,null,null,null,null,null,null,null,"E-mail address:",null,null,null,"cw@weldpro.ltd"]
[null,"Telephone:",null,null,null,null,455501004,null,null,null,null,null,null,null,null,null,null,null,null,null,null,"Telephone:",null,null,null,455502747]
[]
[null,"Activity Letter","PO Line Item",null,"Part / Product Description",null,null,null,null,"Part Number & REV \n(if applicable)","Serial number(s) ",null,null,null,"QTY",null,"TechnipFMC intervention",null,null,null,"TechnipFMC Client interv.","Certification Body interv.","Activity Description (+ITP/MPS ID, if applicable)",null,null,null,null,"Company & Activity Address",null,null,null,null,"Procedure no. ",null,null,null,null,"Rev.",null,"Start date",null,null,"Time",null,"Duration"]
[null,"A","Item 1",null,"Product Description 1",null,null,null,null,"P4000012345 / A","47123456-001 to -005",null,null,null,"5",null,null,null,null,null,null,null,"Welding of bracket P4000056789\nID 13",null,null,null,null,"Weld Pro Ltd.\nCorrosion Road 1777\nSteel City, Noland",null,null,null,null,"WPS-6789",null,null,null,null,"E ",null,"2021-02-01",null,null,"13:00",null,"3 hours"]
[null,"B","Item 1",null,"Product Description 1",null,null,null,null,"P4000012345 / A","47123456-001 to -005",null,null,null,"5",null,null,null,null,null,null,null,"Factory Acceptance Test\nID 21",null,null,null,null,"In-house\nSee \"Supplier address\"",null,null,null,null,"TST60012345",null,null,null,null,"C",null,"2021-03-01",null,null,"08:00",null,"2 days"]
[null,"C","Item 1",null,"Product Description 1",null,null,null,null,"P4000012345 / A","47123456-001 to -005",null,null,null,"5",null,null,null,null,null,null,null,"Final Inspection\nID 23",null,null,null,null,"In-house\nSee \"Supplier address\"",null,null,null,null,"MCR-123",null,null,null,null,"D",null,"2021-03-12",null,null,"12:00",null,"4 hours"]
[null,"D","Item 2",null,"Product Description 2",null,null,null,null,"P6000054321 / B","47123456-001 to -010",null,null,null,"10",null,null,null,null,null,null,null,"Factory Acceptance Test\nID 21",null,null,null,null,"In-house\nSee \"Supplier address\"",null,null,null,null,"TST60054321",null,null,null,null,"B",null,"2021-02-05",null,null,"08:00",null,"4 days"]
[null,"E","Item 2",null,"Product Description 2",null,null,null,null,"P6000054321 / B","47123456-001 to -010",null,null,null,"10",null,null,null,null,null,null,null,"Final Inspection\nID 23",null,null,null,null,"In-house\nSee \"Supplier address\"",null,null,null,null,"MCR-543",null,null,null,null,"B",null,"2021-03-05",null,null,"08:00",null,"1 day"]
[null,"F ",null,null,null,null,null,null,null,null,null,null,null,null,null,null,null,null,null,null,null,null,null,null,null,null,null,null,null,null,null,null,null,null,null,null,null,null,null,"dd-mmm-yyyy"]
[null,"G",null,null,null,null,null,null,null,null,null,null,null,null,null,null,null,null,null,null,null,null,null,null,null,null,null,null,null,null,null,null,null,null,null,null,null,null,null,"dd-mmm-yyyy"]
[null,"Minimum Site PPE Requirements:"]
[null,"Safety Shoes               ",null,null,"Safety Glasses",null,null,null,null,"Hard Hat","Hearing Protection",null,null,null,null,null,"Coveralls",null,null,null,"High Visibility Vest","Gloves","Other:",null,null,"n/a",null,null,null,null,null,null,"Additional PPE Comments:",null,null,null,null,"Hearing protection avalable on-site "]
[null,"Remarks:",null,null,null,null,null,null,null,null,null,null,null,null,null,"Remote Inspection Capability available (if applicable) / comment",null,null,null,null,null,null,null,null,null,null,null,null,null,null,null,null,"Test Equipment available (if applicable) / comment"]
[null,"Visitor registration requirements….",null,null,null,null,null,null,null,null,null,null,null,null,null,"          Yes\n          No",null,null,null,null,"Live Video Capability using TEAMS",null,null,null,null,null,null,null,null,null,null,null,"          Yes\n          No"]
[null,"Section B: To be completed only if TechnipFMC or TechnipFMC's Client decide to waive (if applicable)"]
[null,"TechnipFMC use only:",null,null,null,"Waive",null,null,null,null,"Activity Letter(s) Waived: ",null,null,null,null,null,null,null,null,null,null,null,"Client use only:",null,null,null,null,"Waive",null,null,"Activity Letter(s) Waived: ",null,null,null,null,null,null,"C and E"]
[null,"Reason for waiver: ",null,null,null,null,null,null,null,null,null,null,null,null,null,null,null,null,null,null,null,null,"Reason for waiver: ",null,null,null,null,"Repeat Order; No Quality or Delivery Issues with previous PO"]
[null,"Name:",null,null,null,null,null,null,null,null,null,null,null,null,null,null,null,null,null,null,null,null,"Name:",null,null,null,null,"John Johnson"]
[null,"Title:",null,null,null,null,null,null,null,null,null,null,null,null,null,null,null,null,"Date:",null,null,null,"Title:",null,null,null,null,"Inspection Coordinator",null,null,null,null,null,null,null,null,null,null,null,null,null,"Date:",null,"2021-02-05"]
[null,"Certification Body use only:",null,null,null,"Waive",null,null,null,null,"Activity Letter(s) Waived: ",null,null,null,null,null,null,null,null,null,null,null,"Additional Notes: "]
[null,"Reason for waiver: "]
[null,"Name:"]
[null,"Title:",null,null,null,null,null,null,null,null,null,null,null,null,null,null,null,null,"Date:"]
[null,"This documents is the property of TechnipFMC and is not to be reproduced or disclosed to any party without the written consent of TechnipFMC. \nUser is responsible for verification of released revision status on document copy."]

{"sheet":"Example Multiple PO","index":3,"n_rows":37,"n_cols":45,"rows_kept":37,"cut":false,"hidden":true,"merged":[[0,32,0,34],[0,36,0,37],[0,38,0,39],[0,41,0,42],[0,43,0,46],[1,12,1,37],[1,41,1,46],[7,21,7,24],[7,25,7,46],[2,19,2,29],[2,41,2,42],[2,44,2,46],[4,1,4,5],[4,6,4,20],[4,21,4,24],[4,25,4,33],[4,34,4,35],[4,38,4,46],[12,1,12,5],[12,6,12,20],[12,21,12,24],[12,25,12,46],[13,1,13,5],[13,6,13,20],[13,21,13,24],[13,25,13,46],[8,21,8,24],[8,25,8,46],[9,21,9,46],[10,21,10,46],[11,1,11,5],[11,6,11,20],[11,21,11,24],[11,25,11,46],[5,1,10,5],[5,6,10,20],[5,21,5,24],[5,25,5,33],[5,34,5,37],[5,38,5,46],[6,21,6,24],[6,25,6,46],[15,27,15,31],[15,32,15,36],[15,37,15,38],[15,39,15,41],[15,42,15,43],[15,44,15,46],[15,2,15,3],[15,4,15,8],[15,10,15,13],[15,14,15,15],[15,16,15,19],[15,22,15,26],[16,27,16,31],[16,32,16,36],[16,37,16,38],[16,39,16,41],[16,42,16,43],[16,44,16,46],[16,2,16,3],[16,4,16,8],[16,10,16,13],[16,14,16,15],[16,16,16,19],[16,22,16,26],[17,27,17,31],[17,32,17,36],[17,37,17,38],[17,39,17,41],[17,42,17,43],[17,44,17,46],[17,2,17,3],[17,4,17,8],[17,10,17,13],[17,14,17,15],[17,16,17,19],[17,22,17,26],[18,27,18,31],[18,32,18,36],[18,37,18,38],[18,39,18,41],[18,42,18,43],[18,44,18,46],[18,2,18,3],[18,4,18,8],[18,10,18,13],[18,14,18,15],[18,16,18,19],[18,22,18,26],[19,27,19,31],[19,32,19,36],[19,37,19,38],[19,39,19,41],[19,42,19,43],[19,44,19,46],[19,2,19,3],[19,4,19,8],[19,10,19,13],[19,14,19,15],[19,16,19,19],[19,22,19,26],[20,27,20,31],[20,32,20,36],[20,37,20,38],[20,39,20,41],[20,42,20,43],[20,44,20,46],[20,2,20,3],[20,4,20,8],[20,10,20,13],[20,14,20,15],[20,16,20,19],[20,22,20,26],[21,27,21,31],[21,32,21,36],[21,37,21,38],[21,39,21,41],[21,42,21,43],[21,44,21,46],[21,2,21,3],[21,4,21,8],[21,10,21,13],[21,14,21,15],[21,16,21,19],[21,22,21,26],[22,27,22,31],[22,32,22,36],[22,37,22,38],[22,39,22,41],[22,42,22,43],[22,44,22,46],[22,2,22,3],[22,4,22,8],[22,10,22,13],[22,14,22,15],[22,16,22,19],[22,22,22,26],[25,1,25,14],[25,15,25,31],[25,32,25,46],[26,1,26,14],[26,15,26,19],[26,20,26,31],[26,32,26,36],[26,37,26,46],[23,1,23,46],[24,1,24,3],[24,4,24,8],[24,10,24,15],[24,16,24,19],[24,22,24,24],[24,25,24,31],[24,32,24,36],[24,37,24,46],[29,1,29,4],[29,5,29,21],[29,22,29,26],[29,27,29,46],[30,1,30,4],[30,5,30,21],[30,22,30,26],[30,27,30,46],[27,1,27,46],[28,1,28,4],[28,5,28,9],[28,10,28,15],[28,16,28,21],[28,22,28,25],[28,27,28,29],[28,30,28,36],[28,37,28,46],[36,1,36,46],[34,1,34,4],[34,5,34,21],[35,1,35,4],[35,5,35,17],[35,18,35,19],[35,20,35,21],[31,41,31,42],[31,43,31,46],[32,1,32,4],[32,5,32,9],[32,10,32,15],[32,16,32,21],[32,22,35,26],[32,27,35,46],[33,1,33,4],[33,5,33,21],[31,1,31,4],[31,5,31,17],[31,18,31,19],[31,20,31,21],[31,22,31,26],[31,27,31,40]]}
[null,null,null,null,null,null,null,null,null,null,null,null,null,null,null,null,null,null,null,null,null,null,null,null,null,null,null,null,null,null,null,null,null,null,null,null,null,null,null,null,null,"Doc No:",null,"GTF-COR-21014"]
[null,null,null,null,null,null,null,null,null,null,null,null,"NOTIFICATION OF INTERVENTION POINT FORM",null,null,null,null,null,null,null,null,null,null,null,null,null,null,null,null,null,null,null,null,null,null,null,null,null,null,null,null,"This replaces LST10086668"]
[null,null,null,null,null,null,null,null,null,null,null,null,null,null,null,null,null,null,null,null,null,null,null,null,null,null,null,null,null,null,null,null,null,null,null,null,null,null,null,null,null,"Rev:",null,2,"Page 1 of 1"]
[null,"Section A: To be completed by Supplier"]
[null,"Supplier name:",null,null,null,null,"Supplier Corporation Ltd.",null,null,null,null,null,null,null,null,null,null,null,null,null,null,"Notification no.:",null,null,null,"SC-NOT-13-001",null,null,null,null,null,null,null,null,"Rev.:",null,0,"Date:","2021-01-01"]
[null,"Supplier address:",null,null,null,null,"Quality Avenue 4\n1234 Supplier City\nHigh Region, Noland",null,null,null,null,null,null,null,null,null,null,null,null,null,null,"TechnipFMC Proj name:",null,null,null,"Laggan Tormore",null,null,null,null,null,null,null,null,"TechnipFMC Proj no:",null,null,null,"SS-K20005"]
[null,null,null,null,null,null,null,null,null,null,null,null,null,null,null,null,null,null,null,null,null,"TechnipFMC Client name:",null,null,null,"Client Name"]
[null,null,null,null,null,null,null,null,null,null,null,null,null,null,null,null,null,null,null,null,null,"TechnipFMC Purchase order:",null,null,null,"47123456 (1), 47654321(2)"]
[null,null,null,null,null,null,null,null,null,null,null,null,null,null,null,null,null,null,null,null,null,"ITP/MPQ/MPS Doc. No./Rev:",null,null,null,"ITP-87654321"]
[]
[null,null,null,null,null,null,null,null,null,null,null,null,null,null,null,null,null,null,null,null,null,"Subcontractor contact information (when applicable)"]
[null,"Contact person:",null,null,null,null,"John Fabricator",null,null,null,null,null,null,null,null,null,null,null,null,null,null,"Contact person:",null,null,null,"Clifford Welder"]
[null,"E-mail address:",null,null,null,null,"j.fabricator@supplier-corp.ltd",null,null,null,null,null,null,null,null,null,null,null,null,null,null,"E-mail address:",null,null,null,"cw@weldpro.ltd"]
[null,"Telephone:",null,null,null,null,455501004,null,null,null,null,null,null,null,null,null,null,null,null,null,null,"Telephone:",null,null,null,455502747]
[]
[null,"Activity Letter","PO Line Item",null,"Part / Product Description",null,null,null,null,"Part Number & REV \n(if applicable)","Serial number(s) ",null,null,null,"QTY",null,"TechnipFMC intervention",null,null,null,"TechnipFMC Client interv.","Certification Body interv.","Activity Description (+ITP/MPS ID, if applicable)",null,null,null,null,"Company & Activity Address",null,null,null,null,"Procedure no. ",null,null,null,null,"Rev.",null,"Start date",null,null,"Time",null,"Duration"]
[null,"A","Item 1(1)",null,"Product Description 1",null,null,null,null,"P4000012345 / A","47123456-001 to -005",null,null,null,"5",null,null,null,null,null,null,null,"Welding of bracket P4000056789\nID 13",null,null,null,null,"Weld Pro Ltd.\nCorrosion Road 1777\nSteel City, Noland",null,null,null,null,"WPS-6789",null,null,null,null,"E ",null,"2021-02-01",null,null,"13:00",null,"3 hours"]
[null,"B","Item 1(1)",null,"Product Description 1",null,null,null,null,"P4000012345 / A","47123456-001 to -005",null,null,null,"5",null,null,null,null,null,null,null,"Factory Acceptance Test\nID 21",null,null,null,null,"In-house\nSee \"Supplier address\"",null,null,null,null,"TST60012345",null,null,null,null,"C",null,"2021-03-01",null,null,"08:00",null,"2 days"]
[null,"C","Item 1(2)",null,"Product Description 1",null,null,null,null,"P4000012345 / A","47123456-001 to -005",null,null,null,"5",null,null,null,null,null,null,null,"Final Inspection\nID 23",null,null,null,null,"In-house\nSee \"Supplier address\"",null,null,null,null,"MCR-123",null,null,null,null,"D",null,"2021-03-12",null,null,"12:00",null,"4 hours"]
[null,"D","Item 2(1)",null,"Product Description 2",null,null,null,null,"P6000054321 / B","47123456-001 to -010",null,null,null,"10",null,null,null,null,null,null,null,"Factory Acceptance Test\nID 21",null,null,null,null,"In-house\nSee \"Supplier address\"",null,null,null,null,"TST60054321",null,null,null,null,"B",null,"2021-02-05",null,null,"08:00",null,"4 days"]
[null,"E","Item 2(2)",null,"Product Description 2",null,null,null,null,"P6000054321 / B","47123456-001 to -010",null,null,null,"10",null,null,null,null,null,null,null,"Final Inspection\nID 23",null,null,null,null,"In-house\nSee \"Supplier address\"",null,null,null,null,"MCR-543",null,null,null,null,"B",null,"2021-03-05",null,null,"08:00",null,"1 day"]
[null,"F ",null,null,null,null,null,null,null,null,null,null,null,null,null,null,null,null,null,null,null,null,null,null,null,null,null,null,null,null,null,null,null,null,null,null,null,null,null,"dd-mmm-yyyy"]
[null,"G",null,null,null,null,null,null,null,null,null,null,null,null,null,null,null,null,null,null,null,null,null,null,null,null,null,null,null,null,null,null,null,null,null,null,null,null,null,"dd-mmm-yyyy"]
[null,"Minimum Site PPE Requirements:"]
[null,"Safety Shoes               ",null,null,"Safety Glasses",null,null,null,null,"Hard Hat","Hearing Protection",null,null,null,null,null,"Coveralls",null,null,null,"High Visibility Vest","Gloves","Other:",null,null,"n/a",null,null,null,null,null,null,"Additional PPE Comments:",null,null,null,null,"Hearing protection avalable on-site "]
[null,"Remarks:",null,null,null,null,null,null,null,null,null,null,null,null,null,"Remote Inspection Capability available (if applicable) / comment",null,null,null,null,null,null,null,null,null,null,null,null,null,null,null,null,"Test Equipment available (if applicable) / comment"]
[null,"Visitor registration requirements….",null,null,null,null,null,null,null,null,null,null,null,null,null,"          Yes\n          No",null,null,null,null,"Live Video Capability using TEAMS",null,null,null,null,null,null,null,null,null,null,null,"          Yes\n          No"]
[null,"Section B: To be completed only if TechnipFMC or TechnipFMC's Client decide to waive (if applicable)"]
[null,"TechnipFMC use only:",null,null,null,"Waive",null,null,null,null,"Activity Letter(s) Waived: ",null,null,null,null,null,null,null,null,null,null,null,"Client use only:",null,null,null,null,"Waive",null,null,"Activity Letter(s) Waived: ",null,null,null,null,null,null,"C and E"]
[null,"Reason for waiver: ",null,null,null,null,null,null,null,null,null,null,null,null,null,null,null,null,null,null,null,null,"Reason for waiver: ",null,null,null,null,"Repeat Order; No Quality or Delivery Issues with previous PO"]
[null,"Name:",null,null,null,null,null,null,null,null,null,null,null,null,null,null,null,null,null,null,null,null,"Name:",null,null,null,null,"John Johnson"]
[null,"Title:",null,null,null,null,null,null,null,null,null,null,null,null,null,null,null,null,"Date:",null,null,null,"Title:",null,null,null,null,"Inspection Coordinator",null,null,null,null,null,null,null,null,null,null,null,null,null,"Date:",null,"2021-02-05"]
[null,"Certification Body use only:",null,null,null,"Waive",null,null,null,null,"Activity Letter(s) Waived: ",null,null,null,null,null,null,null,null,null,null,null,"Additional Notes: "]
[null,"Reason for waiver: "]
[null,"Name:"]
[null,"Title:",null,null,null,null,null,null,null,null,null,null,null,null,null,null,null,null,"Date:"]
[null,"This documents is the property of TechnipFMC and is not to be reproduced or disclosed to any party without the written consent of TechnipFMC. \nUser is responsible for verification of released revision status on document copy."]

{"sheet":"Instruction","index":4,"n_rows":124,"n_cols":4,"rows_kept":124,"cut":false,"hidden":true,"merged":[[2,1,2,3],[8,1,8,3],[84,1,84,3]]}
[null,"Instruction on how to fill in the Notification of Intervention Point Form"]
[null,"Notification of Witness & Hold Points"]
[null,"The email address to each location of where to send the formal notification will be stated in Q00393 if a Pre-Production Meeting, or on the PO/Agreement/Contract or TechnipFMC Part Report (DBI) for other intervention activities. "]
[null,"Email subject",":","Supplier name, Activity*, PO No(s) or Contract Number(s), Part No(s) (if applicable), Project Name (if applicable)"]
[null,"NOTE",":","Activity* will be defined as \"Witness\", \"Hold\" or \"PPM\""]
[null,"NOTE",":","Email can only contain notification(s) for one project and one product group.  This notification form only applies to Hold or Witness intervention points.  Monitor points do not require notification. "]
[null,null,null,"When several activities are to occur on the same day, at the same location, the notification can reference all activities.  Activities that occur over several continuous days may also be included on the same notification.  Where two separate activities are planned with a time lag of 1 working day (includes weekends) or more, dedicated activities shall be submitted.  If several activities are notified, and one of them needs to be updated, update the notification (don't create a new one). \nThe example sheet is showing different types of activities not taking connecting activities into consideration."]
[]
[null,"Section A: To be completed by supplier"]
[]
[null,"Supplier name",":","Supplier's full company name, with no abbreviations or acronyms."]
[]
[null,"Supplier address",":","Supplier's visitor address (usually; street name, street number, city, area, country)."]
[]
[null,"Notification no.",":","Supplier's own numbering system to keep track of the notifications, e.g. ABC-12-001 \n(ABC = vendor name/project code, 12 = year, 001= running number)."]
[]
[null,"Rev.",":","Revision of the notification. Start with revision 0. Change if/when updated (1, 2, etc.)."]
[]
[null,"Date",":","The date when the notification is issued TechnipFMC.  dd-mmm-yyyy format (Example: 5-May-2020)"]
[]
[null,"TechnipFMC project no.",":","TechnipFMC project number, e.g. SS-K20005. (if listed in PO/Agreement/Contract or TechnipFMC Part Report)"]
[]
[null,"TechnipFMC project name",":","TechnipFMC project name (full name), e.g. Laggan Tormore. (if listed in PO/Agreement/Contract or TechnipFMC Part Report)"]
[]
[null,"TechnipFMC Client name",":","TechnipFMC Client name, e.g. Total, BP, Equinor etc. (if listed in PO/Agreement/Contract or TechnipFMC Part Report)"]
[]
[null,"TechnipFMC Purchase order",":","Supplier need to specify TechnipFMC purchase order (PO) number or TechnipFMC contract number towards Supplier, if no PO is issued.  Note: Notification form can reference multiple POs for the same TechnipFMC Client only.  Refer to \"Example, multiple POs\" and \"How to make superscript\" tabs for guidance on adding reference to multiple POs."]
[]
[null,"ITP/MPQ/MPS doc no. & rev.",":","Supplier need to specify the approved ITP/MPQ/MPS document number and the revision level. Note: Notification form can reference multiple ITPs/MPQs/MPSs for the same TechnipFMC Client only.  Refer to \"Example, multiple POs\" and \"How to make superscript\" tabs for guidance on adding reference to multiple ITPs/MPQs/MPSs."]
[]
[null,"Supplier contact person",":","Supplier contact that can be contacted for questions related to this notification."]
[]
[null,"Supplier e-mail address",":","Supplier contact person's e-mail address."]
[]
[null,"Supplier telephone number",":","Supplier contact person's telephone number."]
[]
[null,"Subcontractor contact person",":","Subcontractor contact that can be contacted for questions related to this notification. There can be several subcontractors listed."]
[]
[null,"Subcontractor e-mail address",":","Subcontractor contact person's e-mail address."]
[]
[null,"Subcontractor telephone number",":","Subcontractor contact person's telephone number."]
[]
[null,"NOTE",":","If any cell information above is not available, please state \"N/A\""]
[]
[null,"Activity Letter",":","Letters are used to distinguish between different witness/hold intervention activities.  Note: TechnipFMC and TechnipFMC's Client shall clearly identify the activity letter(s) they intend to waive in Section B, if any. "]
[]
[null,"PO Line item",":","Supplier need to specify which Line Item in Purchase Order this is. (e.g. Item 2)"]
[]
[null,"Part / Product Description ",":","Supplier need to specify TechnipFMC part / product description."]
[]
[null,"Part Number & Rev (if applicable)",":","Supplier need to specify TechnipFMC part number / revision (if applicable)."]
[]
[null,"Serial number and quantity",":","Supplier need to specify TechnipFMC Serial Number(s) on the notified part(s). This is the exact Serial Number marked on the Part. \nIf no Serial Number is required, type \"N/A\". Type the quantity or unit of measure. "]
[]
[null,"TechnipFMC intervention",":","Tick off if it is a Hold point \"H\" or Witness point \"W\" for TechnipFMC."]
[]
[null,"TechnipFMC Client intervention",":","Tick off if it is a Hold point \"H\" or Witness point \"W\" for TechnipFMC's Client."]
[]
[null,"Certification Body Intervention",":","Tick off if it is a Hold point \"H\" or Witness point \"W\" for Certification Body Intervention, e.g. Lloyds Registrar or DNV. "]
[]
[null,"Hold point \"H\"",":","A Hold point \"H\" is a manufacturing, testing or service activity where it is required that an independent TechnipFMC representative is present to observe the activity and to ascertain that the product or service for delivery complies with the specified requirements. \n\nTechnipFMC must be given notification of all process activities designated with a Hold point \"H\" within a predetermined amount of time before the start of that activity.  If the applicable representative is not present, the activity may only start on a written authorization (waiver) to proceed from the applicable representative. Waiving a hold point shall be documented and the reason for waiving stated (refer to Section B of this NOI form).  "]
[]
[null,"Witness point \"W\" and Witness 1 Point (W1)",":","A Witness point \"W\" is a manufacturing, testing or service activity where it is required that an independent party verifies during the execution of the activity that the product or service for delivery complies with the specified requirements. \n\nTechnipFMC must be given notification of all process activities designated with a Witness point \"W\" within a predetermined amount of time before the start of that activity. Once proper notification is given, the process can proceed with or without the presence of a Client representative after the designated amount of time has passed.  Some projects may provide a written response with intent to witness the activity or acknowledge non-participation (this is optional).\n\nTechnipFMC Supplier Quality Representatives, Quality Control & Surveillance Representatives or contracted Certified Third-Party Operators shall attend Witness Points.  If the TechnipFMC representative is not present, the activity may only start on a written authorization (waiver) to proceed. Waiving a witness point shall be documented and the reason for waiving stated (refer to Section B of this NOI form).  \n\nWitness 1 Point (W1) – This is the same as a witness point except, the Supplier shall notify TechnipFMC to witness the activities stated on the part report the first time the part number is manufactured by the supplier. Supplier shall select \"W\" in the NOI form. Subsequent manufacture of that part number does not require witness notification (i.e., considered a Monitor Point after successful completion of the W1). Example: W1 for Heat Treatment would mean a Notification of Intervention (NOI) is required only for the first time the product is going to be heat treated. TechnipFMC will provide the notification address that includes the client notification when this is required. The Supplier shall provide one notification for the manufacturing activities shown on the part report. It is planned for W1 notifications to be attended.  For Subsea Production Systems (SPS) Suppliers, the eSMDR system will assist in tracking the first article witness.  TechnipFMC reserves the right to require a Witness 1 be completed again if deemed necessary due to part revisions, time between parts being produced, supplier performance, etc.\n\nNote: There are two versions of W1. First is as stated above, a witness of the first time manufacture of the part number by the supplier on a part number basis (not revision basis). The second variation is to do this same W1 on a first time manufacture of the part number per TechnipFMC-Client Project basis to enable each client project to be aware and attend. TechnipFMC will have different specifications between the two W1 variations in order to clarify which is applicable. The eSMDR tracking will help both the supplier and TechnipFMC to identify when the first manufacture has been conducted. Refer to Q15005 or Q15006 for additional guidance on TechnipFMC and TechnipFMC's Client W1."]
[]
[null,"Not Applicable \"N/A\"",":","If intervention point is neither a witness or a hold for TechnipFMC, TechnipFMC's Client, or Certification Body.  For example, if TechnipFMC requires a Hold point for Heat Treatment but TechnipFMC's Client and Certification Body does not, then the Supplier shall select \"Hold point\" for TechnipFMC and \"N/A\" for TechnipFMC's Client and Certification Body.  Note: This notification form only applies to Hold or Witness intervention points.  Monitor points do not require notification. "]
[]
[null,"Activity Description (+ITP/MPS ID, if applicable)",":","Supplier need to specify the description of activity, and if applicable, the ITP/MPQ/MPS ID Number. (e.g. Pre-Production Meeting ID 2.2, Final Inspection ID 25). Note: If a ITP/MPQ/MPS was not required, supplier shall specify the description of activity only. \n\n"]
[]
[null,"Company & Activity Address",":","The Company name and location of where the activity will take place. Write full address including company name when different from the specified supplier visitor address. (i.e., at a subcontractor location)"]
[]
[null,"Procedure no. , rev.",":","Specify the procedure document number (or any applicable documentation/drawing) and it's revision level for this specific activity, if applicable.  Note: procedures referenced for the activity shall be approved by TechnipFMC and TechnipFMC's Client, if required, prior to NOI submittal.  "]
[]
[null,"Start date, Time & Duration",":","Date & time for start of the activity, and the duration (e.g. 1 hour, 1 day, 2 weeks).  dd-mmm-yyyy format (Example: 5-May-2020).  Notification shall be received by TechnipFMC minimum 10 business days prior to activity start if not otherwise agreed."]
[]
[null,"Minimum Site PPE Requirements",":","Supplier to select minimum site personal protective equipment (PPE).  List Other PPE requirements, as needed (e.g., reflective stripes on coveralls, respirators, face shields, etc.). A cell for additional PPE comments is available."]
[]
[null,"Remarks",":","Supplier may provide additional information for notification purpose, \ne.g., visitor registration, evening/weekend shift, holidays, etc."]
[]
[null,"Remote Inspection Capability available (if applicable) / comments",":","Supplier shall indicate any remote inspection capabilities (e.g., software, equipment, etc.).  TechnipFMC will evaluate and confirm if inspection will be held on-site or remotely."]
[]
[null,"Test Equipment available \n(if applicable) / comments",":","Supplier shall make sure all test equipment are available for test before sending the notification. (if applicable). A cell for comments if something to mention. "]
[]
[]
[]
[null,"Section B: To be completed only if TechnipFMC or TechnipFMC's Client decide to waive the Hold/Witness point (witness points do not need a formal waiver from the Client)"]
[]
[null,"TechnipFMC use only - Waive",":","This checkbox shall be marked if TechnipFMC decide to formally waive a Hold/Witness point. If the Supplier does not receive any waiver, then expect TechnipFMC attendance. "]
[]
[null,"Activity Letter(s) Waived",":","TechnipFMC shall clearly identify the activity letter(s) they intend to waive, if any. "]
[]
[null,"Reason for Waiver",":","Reason for giving the formal waiver"]
[]
[null,"Name (TechnipFMC use only)",":","Name of person giving the formal waiver"]
[]
[null,"Title (TechnipFMC use only)",":","The job title to the person giving the waiver"]
[]
[null,"Date (TechnipFMC use only)",":","The date the waiver was formally given"]
[]
[null,"Client use only - Waive",":","This checkbox shall be marked if Client decide to formally waive a hold point. If the Supplier does not receive any waiver, then expect TechnipFMC's Client attendance. "]
[]
[null,"Activity Letter(s) Waived",":","TechnipFMC's Client shall clearly identify the activity letter(s) they intend to waive, if any. "]
[]
[null,"Reason for Waiver",":","Reason for giving the formal waiver"]
[]
[null,"Name (client use only)",":","Name of person giving the formal waiver"]
[]
[null,"Title (client use only)",":","The job title to the person giving the waiver"]
[]
[null,"Date (client use only)",":","The date the waiver was formally given"]
[]
[null,"Certification Body only - Waive",":","This checkbox shall be marked if Certification Body decides to formally waive a hold point. If the Supplier does not receive any waiver, then expect attendance. "]
[]
[null,"Activity Letter(s) Waived",":","Certification Body shall clearly identify the activity letter(s) they intend to waive, if any. "]
[]
[null,"Reason for Waiver",":","Reason for giving the formal waiver"]
[]
[null,"Name (certification Body use only)",":","Name of person giving the formal waiver"]
[]
[null,"Title (certification Body use only)",":","The job title to the person giving the waiver"]
[]
[null,"Date (certification Body use only)",":","The date the waiver was formally given"]
[]
[]
[null,"Additional Notes Section",":","This section is for TechnipFMC region specific Notes, e.g., AP may need to add the Purchase Requisition (PR) number to the notification form for internal processing. "]

{"sheet":"How to make superscript","index":5,"n_rows":37,"n_cols":1,"rows_kept":37,"cut":false,"hidden":true,"merged":[]}
[]
["How to make \"superscript\" : (1)"]
[]
["1. Mark the text you want to make superscript."]
["2. Right click, choose \"Format Cells...\""]
[]
[]
[]
[]
[]
[]
[]
[]
[]
[]
[]
[]
["3. Choose \"Superscript\", press ok."]
[]
[]
[]
[]
[]
[]
[]
[]
[]
[]
[]
[]
[]
[]
[]
[]
[]
[]
["4. You are done!"]

{"sheet":"TEMPLATE_TABULAR","index":6,"n_rows":9,"n_cols":24,"rows_kept":9,"cut":false,"hidden":true,"merged":[]}
[]
[null,"Supplier Name","Supplier contact person","Notification No. & Ver","Date","TFMC Project name & No.","TFMC Client name","TFMC PO No.","ITP/MPWP Doc. No.","Subcontractor person","Activity Letter","PO Line","PN, Desc & Revision","Serial No.","QTY","TFMC Intervention","TFMC Client Interv.","Certif. Body interv.","Activity ID","Procedure No. & Revision","Status code","Start date","Time","Duration"]
[null,{"$f":"IF(LEN($L3)<1,\"\",Template!$G$5)","v":""},{"$f":"IF(LEN($L3)<1,\"\",Template!$G$12)","v":""},{"$f":"IF(LEN($L3)<1,\"\",CONCATENATE(Template!$Z$5,\" Rev. \",Template!$AK$5))","v":""},{"$f":"IF(LEN($L3)<1,\"\",Template!$AM$5)","v":""},{"$f":"IF(LEN($L3)<1,\"\",CONCATENATE(Template!$Z$6,\" - \",Template!$AM$6))","v":""},{"$f":"IF(LEN($L3)<1,\"\",Template!$Z$7)","v":""},{"$f":"IF(LEN($L3)<1,\"\",Template!$Z$8)","v":""},{"$f":"IF(LEN($L3)<1,\"\",Template!$Z$9)","v":""},{"$f":"IF(LEN($L3)<1,\"\",Template!$Z$12)","v":""},{"$f":"IF(LEN($L3)<2,\"\",Template!$B$17)","v":""},{"$f":"IF(LEN(Template!$C$17)<2,\"\",Template!$C$17)","v":""},{"$f":"IF(LEN(CONCATENATE(Template!$E$17,\" Rev. \",Template!$J$17))<10,\"\",CONCATENATE(Template!$E$17,\" Rev. \",Template!$J$17))","v":""},{"$f":"IF(LEN($L3)<2,\"\",Template!$K$17)","v":""},{"$f":"IF(LEN($L3)<2,\"\",Template!$O$17)","v":""},{"$f":"IF(LEN($L3)<2,\"\",CHECKBOXES_TABULAR!I3)","v":""},{"$f":"IF(LEN($L3)<2,\"\",CHECKBOXES_TABULAR!J3)","v":""},{"$f":"IF(LEN($L3)<2,\"\",CHECKBOXES_TABULAR!K3)","v":""},{"$f":"IF(LEN($L3)<2,\"\",Template!$W$17)","v":""},{"$f":"IF(LEN($L3)<2,\"\",CONCATENATE(Template!$AG$17,\" Rev. \",Template!$AK$17))","v":""},{"$f":"IF(LEN($L3)<2,\"\",Template!$AL$17)","v":""},{"$f":"IF(LEN($L3)<2,\"\",Template!$AN$17)","v":""},{"$f":"IF(LEN($L3)<2,\"\",Template!$AQ$17)","v":""},{"$f":"IF(LEN($L3)<2,\"\",Template!$AS$17)","v":""}]
[null,{"$f":"IF(LEN($L4)<1,\"\",Template!$G$5)","v":""},{"$f":"IF(LEN($L4)<1,\"\",Template!$G$12)","v":""},{"$f":"IF(LEN($L4)<1,\"\",CONCATENATE(Template!$Z$5,\" Rev. \",Template!$AK$5))","v":""},{"$f":"IF(LEN($L4)<1,\"\",Template!$AM$5)","v":""},{"$f":"IF(LEN($L4)<1,\"\",CONCATENATE(Template!$Z$6,\" - \",Template!$AM$6))","v":""},{"$f":"IF(LEN($L4)<1,\"\",Template!$Z$7)","v":""},{"$f":"IF(LEN($L4)<1,\"\",Template!$Z$8)","v":""},{"$f":"IF(LEN($L4)<1,\"\",Template!$Z$9)","v":""},{"$f":"IF(LEN($L4)<1,\"\",Template!$Z$12)","v":""},{"$f":"IF(LEN($L4)<2,\"\",Template!$B$19)","v":""},{"$f":"IF(LEN(Template!$C$19)<2,\"\",Template!$C$19)","v":""},{"$f":"IF(LEN(CONCATENATE(Template!$E$19,\" Rev. \",Template!$J$19))<10,\"\",CONCATENATE(Template!$E$19,\" Rev. \",Template!$J$19))","v":""},{"$f":"IF(LEN($L4)<2,\"\",Template!$K$19)","v":""},{"$f":"IF(LEN($L4)<2,\"\",Template!$O$19)","v":""},{"$f":"IF(LEN($L4)<2,\"\",CHECKBOXES_TABULAR!I4)","v":""},{"$f":"IF(LEN($L4)<2,\"\",CHECKBOXES_TABULAR!J4)","v":""},{"$f":"IF(LEN($L4)<2,\"\",CHECKBOXES_TABULAR!K4)","v":""},{"$f":"IF(LEN($L4)<2,\"\",Template!$W$19)","v":""},{"$f":"IF(LEN($L4)<2,\"\",CONCATENATE(Template!$AG$19,\" Rev. \",Template!$AK$19))","v":""},{"$f":"IF(LEN($L4)<2,\"\",Template!$AL$19)","v":""},{"$f":"IF(LEN($L4)<2,\"\",Template!$AN$19)","v":""},{"$f":"IF(LEN($L4)<2,\"\",Template!$AQ$19)","v":""},{"$f":"IF(LEN($L4)<2,\"\",Template!$AS$19)","v":""}]
[null,{"$f":"IF(LEN($L5)<1,\"\",Template!$G$5)","v":""},{"$f":"IF(LEN($L5)<1,\"\",Template!$G$12)","v":""},{"$f":"IF(LEN($L5)<1,\"\",CONCATENATE(Template!$Z$5,\" Rev. \",Template!$AK$5))","v":""},{"$f":"IF(LEN($L5)<1,\"\",Template!$AM$5)","v":""},{"$f":"IF(LEN($L5)<1,\"\",CONCATENATE(Template!$Z$6,\" - \",Template!$AM$6))","v":""},{"$f":"IF(LEN($L5)<1,\"\",Template!$Z$7)","v":""},{"$f":"IF(LEN($L5)<1,\"\",Template!$Z$8)","v":""},{"$f":"IF(LEN($L5)<1,\"\",Template!$Z$9)","v":""},{"$f":"IF(LEN($L5)<1,\"\",Template!$Z$12)","v":""},{"$f":"IF(LEN($L5)<2,\"\",Template!$B$21)","v":""},{"$f":"IF(LEN(Template!$C$21)<2,\"\",Template!$C$21)","v":""},{"$f":"IF(LEN(CONCATENATE(Template!$E$21,\" Rev. \",Template!$J$21))<10,\"\",CONCATENATE(Template!$E$21,\" Rev. \",Template!$J$21))","v":""},{"$f":"IF(LEN($L5)<2,\"\",Template!$K$21)","v":""},{"$f":"IF(LEN($L5)<2,\"\",Template!$O$21)","v":""},{"$f":"IF(LEN($L5)<2,\"\",CHECKBOXES_TABULAR!I5)","v":""},{"$f":"IF(LEN($L5)<2,\"\",CHECKBOXES_TABULAR!J5)","v":""},{"$f":"IF(LEN($L5)<2,\"\",CHECKBOXES_TABULAR!K5)","v":""},{"$f":"IF(LEN($L5)<2,\"\",Template!$W$21)","v":""},{"$f":"IF(LEN($L5)<2,\"\",CONCATENATE(Template!$AG$21,\" Rev. \",Template!$AK$21))","v":""},{"$f":"IF(LEN($L5)<2,\"\",Template!$AL$21)","v":""},{"$f":"IF(LEN($L5)<2,\"\",Template!$AN$21)","v":""},{"$f":"IF(LEN($L5)<2,\"\",Template!$AQ$21)","v":""},{"$f":"IF(LEN($L5)<2,\"\",Template!$AS$21)","v":""}]
[null,{"$f":"IF(LEN($L6)<1,\"\",Template!$G$5)","v":""},{"$f":"IF(LEN($L6)<1,\"\",Template!$G$12)","v":""},{"$f":"IF(LEN($L6)<1,\"\",CONCATENATE(Template!$Z$5,\" Rev. \",Template!$AK$5))","v":""},{"$f":"IF(LEN($L6)<1,\"\",Template!$AM$5)","v":""},{"$f":"IF(LEN($L6)<1,\"\",CONCATENATE(Template!$Z$6,\" - \",Template!$AM$6))","v":""},{"$f":"IF(LEN($L6)<1,\"\",Template!$Z$7)","v":""},{"$f":"IF(LEN($L6)<1,\"\",Template!$Z$8)","v":""},{"$f":"IF(LEN($L6)<1,\"\",Template!$Z$9)","v":""},{"$f":"IF(LEN($L6)<1,\"\",Template!$Z$12)","v":""},{"$f":"IF(LEN($L6)<2,\"\",Template!$B$23)","v":""},{"$f":"IF(LEN(Template!$C$23)<2,\"\",Template!$C$23)","v":""},{"$f":"IF(LEN(CONCATENATE(Template!$E$23,\" Rev. \",Template!$J$23))<10,\"\",CONCATENATE(Template!$E$23,\" Rev. \",Template!$J$23))","v":""},{"$f":"IF(LEN($L6)<2,\"\",Template!$K$23)","v":""},{"$f":"IF(LEN($L6)<2,\"\",Template!$O$23)","v":""},{"$f":"IF(LEN($L6)<2,\"\",CHECKBOXES_TABULAR!I6)","v":""},{"$f":"IF(LEN($L6)<2,\"\",CHECKBOXES_TABULAR!J6)","v":""},{"$f":"IF(LEN($L6)<2,\"\",CHECKBOXES_TABULAR!K6)","v":""},{"$f":"IF(LEN($L6)<2,\"\",Template!$W$23)","v":""},{"$f":"IF(LEN($L6)<2,\"\",CONCATENATE(Template!$AG$23,\" Rev. \",Template!$AK$23))","v":""},{"$f":"IF(LEN($L6)<2,\"\",Template!$AL$23)","v":""},{"$f":"IF(LEN($L6)<2,\"\",Template!$AN$23)","v":""},{"$f":"IF(LEN($L6)<2,\"\",Template!$AQ$23)","v":""},{"$f":"IF(LEN($L6)<2,\"\",Template!$AS$23)","v":""}]
[null,{"$f":"IF(LEN($L7)<1,\"\",Template!$G$5)","v":""},{"$f":"IF(LEN($L7)<1,\"\",Template!$G$12)","v":""},{"$f":"IF(LEN($L7)<1,\"\",CONCATENATE(Template!$Z$5,\" Rev. \",Template!$AK$5))","v":""},{"$f":"IF(LEN($L7)<1,\"\",Template!$AM$5)","v":""},{"$f":"IF(LEN($L7)<1,\"\",CONCATENATE(Template!$Z$6,\" - \",Template!$AM$6))","v":""},{"$f":"IF(LEN($L7)<1,\"\",Template!$Z$7)","v":""},{"$f":"IF(LEN($L7)<1,\"\",Template!$Z$8)","v":""},{"$f":"IF(LEN($L7)<1,\"\",Template!$Z$9)","v":""},{"$f":"IF(LEN($L7)<1,\"\",Template!$Z$12)","v":""},{"$f":"IF(LEN($L7)<2,\"\",Template!$B$25)","v":""},{"$f":"IF(LEN(Template!$C$25)<2,\"\",Template!$C$25)","v":""},{"$f":"IF(LEN(CONCATENATE(Template!$E$25,\" Rev. \",Template!$J$25))<10,\"\",CONCATENATE(Template!$E$25,\" Rev. \",Template!$J$25))","v":""},{"$f":"IF(LEN($L7)<2,\"\",Template!$K$25)","v":""},{"$f":"IF(LEN($L7)<2,\"\",Template!$O$25)","v":""},{"$f":"IF(LEN($L7)<2,\"\",CHECKBOXES_TABULAR!I7)","v":""},{"$f":"IF(LEN($L7)<2,\"\",CHECKBOXES_TABULAR!J7)","v":""},{"$f":"IF(LEN($L7)<2,\"\",CHECKBOXES_TABULAR!K7)","v":""},{"$f":"IF(LEN($L7)<2,\"\",Template!$W$25)","v":""},{"$f":"IF(LEN($L7)<2,\"\",CONCATENATE(Template!$AG$25,\" Rev. \",Template!$AK$25))","v":""},{"$f":"IF(LEN($L7)<2,\"\",Template!$AL$25)","v":""},{"$f":"IF(LEN($L7)<2,\"\",Template!$AN$25)","v":""},{"$f":"IF(LEN($L7)<2,\"\",Template!$AQ$25)","v":""},{"$f":"IF(LEN($L7)<2,\"\",Template!$AS$25)","v":""}]
[null,{"$f":"IF(LEN($L8)<1,\"\",Template!$G$5)","v":""},{"$f":"IF(LEN($L8)<1,\"\",Template!$G$12)","v":""},{"$f":"IF(LEN($L8)<1,\"\",CONCATENATE(Template!$Z$5,\" Rev. \",Template!$AK$5))","v":""},{"$f":"IF(LEN($L8)<1,\"\",Template!$AM$5)","v":""},{"$f":"IF(LEN($L8)<1,\"\",CONCATENATE(Template!$Z$6,\" - \",Template!$AM$6))","v":""},{"$f":"IF(LEN($L8)<1,\"\",Template!$Z$7)","v":""},{"$f":"IF(LEN($L8)<1,\"\",Template!$Z$8)","v":""},{"$f":"IF(LEN($L8)<1,\"\",Template!$Z$9)","v":""},{"$f":"IF(LEN($L8)<1,\"\",Template!$Z$12)","v":""},{"$f":"IF(LEN($L8)<2,\"\",Template!$B$27)","v":""},{"$f":"IF(LEN(Template!$C$27)<2,\"\",Template!$C$27)","v":""},{"$f":"IF(LEN(CONCATENATE(Template!$E$27,\" Rev. \",Template!$J$27))<10,\"\",CONCATENATE(Template!$E$27,\" Rev. \",Template!$J$27))","v":""},{"$f":"IF(LEN($L8)<2,\"\",Template!$K$27)","v":""},{"$f":"IF(LEN($L8)<2,\"\",Template!$O$27)","v":""},{"$f":"IF(LEN($L8)<2,\"\",CHECKBOXES_TABULAR!I8)","v":""},{"$f":"IF(LEN($L8)<2,\"\",CHECKBOXES_TABULAR!J8)","v":""},{"$f":"IF(LEN($L8)<2,\"\",CHECKBOXES_TABULAR!K8)","v":""},{"$f":"IF(LEN($L8)<2,\"\",Template!$W$27)","v":""},{"$f":"IF(LEN($L8)<2,\"\",CONCATENATE(Template!$AG$27,\" Rev. \",Template!$AK$27))","v":""},{"$f":"IF(LEN($L8)<2,\"\",Template!$AL$27)","v":""},{"$f":"IF(LEN($L8)<2,\"\",Template!$AN$27)","v":""},{"$f":"IF(LEN($L8)<2,\"\",Template!$AQ$27)","v":""},{"$f":"IF(LEN($L8)<2,\"\",Template!$AS$27)","v":""}]
[null,{"$f":"IF(LEN($L9)<1,\"\",Template!$G$5)","v":""},{"$f":"IF(LEN($L9)<1,\"\",Template!$G$12)","v":""},{"$f":"IF(LEN($L9)<1,\"\",CONCATENATE(Template!$Z$5,\" Rev. \",Template!$AK$5))","v":""},{"$f":"IF(LEN($L9)<1,\"\",Template!$AM$5)","v":""},{"$f":"IF(LEN($L9)<1,\"\",CONCATENATE(Template!$Z$6,\" - \",Template!$AM$6))","v":""},{"$f":"IF(LEN($L9)<1,\"\",Template!$Z$7)","v":""},{"$f":"IF(LEN($L9)<1,\"\",Template!$Z$8)","v":""},{"$f":"IF(LEN($L9)<1,\"\",Template!$Z$9)","v":""},{"$f":"IF(LEN($L9)<1,\"\",Template!$Z$12)","v":""},{"$f":"IF(LEN($L9)<2,\"\",Template!$B$29)","v":""},{"$f":"IF(LEN(Template!$C$29)<2,\"\",Template!$C$29)","v":""},{"$f":"IF(LEN(CONCATENATE(Template!$E$29,\" Rev. \",Template!$J$29))<10,\"\",CONCATENATE(Template!$E$29,\" Rev. \",Template!$J$29))","v":""},{"$f":"IF(LEN($L9)<2,\"\",Template!$K$29)","v":""},{"$f":"IF(LEN($L9)<2,\"\",Template!$O$29)","v":""},{"$f":"IF(LEN($L9)<2,\"\",CHECKBOXES_TABULAR!I9)","v":""},{"$f":"IF(LEN($L9)<2,\"\",CHECKBOXES_TABULAR!J9)","v":""},{"$f":"IF(LEN($L9)<2,\"\",CHECKBOXES_TABULAR!K9)","v":""},{"$f":"IF(LEN($L9)<2,\"\",Template!$W$29)","v":""},{"$f":"IF(LEN($L9)<2,\"\",CONCATENATE(Template!$AG$29,\" Rev. \",Template!$AK$29))","v":""},{"$f":"IF(LEN($L9)<2,\"\",Template!$AL$29)","v":""},{"$f":"IF(LEN($L9)<2,\"\",Template!$AN$29)","v":""},{"$f":"IF(LEN($L9)<2,\"\",Template!$AQ$29)","v":""},{"$f":"IF(LEN($L9)<2,\"\",Template!$AS$29)","v":""}]

{"sheet":"CHECKBOXES_TABULAR","index":7,"n_rows":23,"n_cols":11,"rows_kept":23,"cut":false,"hidden":true,"merged":[]}
[]
[null,"Activity Letter","Interv. Type","TFMC Interv.","TFMC Client Inter","Certific. Body Interv.",null,"Activity Letter","TFMC Interv.","TFMC Client Inter","Certific. Body Interv."]
[null,"A","Witness Point",false,false,false,null,"A",{"$f":"IF(D3=FALSE,IF(D4=FALSE,IF(D5=FALSE,\"\",$C5),$C4),$C3)","v":""},{"$f":"IF(E3=FALSE,IF(E4=FALSE,IF(E5=FALSE,\"\",$C5),$C4),$C3)","v":""},{"$f":"IF(F3=FALSE,IF(F4=FALSE,IF(F5=FALSE,\"\",$C5),$C4),$C3)","v":""}]
[null,"A","Hold Point",false,false,false,null,"B",{"$f":"IF(D6=FALSE,IF(D7=FALSE,IF(D8=FALSE,\"\",$C8),$C7),$C6)","v":""},{"$f":"IF(E6=FALSE,IF(E7=FALSE,IF(E8=FALSE,\"\",$C8),$C7),$C6)","v":""},{"$f":"IF(F6=FALSE,IF(F7=FALSE,IF(F8=FALSE,\"\",$C8),$C7),$C6)","v":""}]
[null,"A","N/A",false,false,false,null,"C",{"$f":"IF(D9=FALSE,IF(D10=FALSE,IF(D11=FALSE,\"\",$C11),$C10),$C9)","v":""},{"$f":"IF(E9=FALSE,IF(E10=FALSE,IF(E11=FALSE,\"\",$C11),$C10),$C9)","v":""},{"$f":"IF(F9=FALSE,IF(F10=FALSE,IF(F11=FALSE,\"\",$C11),$C10),$C9)","v":""}]
[null,"B","Witness Point",false,false,false,null,"D",{"$f":"IF(D12=FALSE,IF(D13=FALSE,IF(D14=FALSE,\"\",$C14),$C13),$C12)","v":""},{"$f":"IF(E12=FALSE,IF(E13=FALSE,IF(E14=FALSE,\"\",$C14),$C13),$C12)","v":""},{"$f":"IF(F12=FALSE,IF(F13=FALSE,IF(F14=FALSE,\"\",$C14),$C13),$C12)","v":""}]
[null,"B","Hold Point",false,false,false,null,"E",{"$f":"IF(D15=FALSE,IF(D16=FALSE,IF(D17=FALSE,\"\",$C17),$C16),$C15)","v":""},{"$f":"IF(E15=FALSE,IF(E16=FALSE,IF(E17=FALSE,\"\",$C17),$C16),$C15)","v":""},{"$f":"IF(F15=FALSE,IF(F16=FALSE,IF(F17=FALSE,\"\",$C17),$C16),$C15)","v":""}]
[null,"B","N/A",false,false,false,null,"F",{"$f":"IF(D18=FALSE,IF(D19=FALSE,IF(D20=FALSE,\"\",$C20),$C19),$C18)","v":""},{"$f":"IF(E18=FALSE,IF(E19=FALSE,IF(E20=FALSE,\"\",$C20),$C19),$C18)","v":""},{"$f":"IF(F18=FALSE,IF(F19=FALSE,IF(F20=FALSE,\"\",$C20),$C19),$C18)","v":""}]
[null,"C","Witness Point",false,false,false,null,"G",{"$f":"IF(D21=FALSE,IF(D22=FALSE,IF(D23=FALSE,\"\",$C23),$C22),$C21)","v":""},{"$f":"IF(E21=FALSE,IF(E22=FALSE,IF(E23=FALSE,\"\",$C23),$C22),$C21)","v":""},{"$f":"IF(F21=FALSE,IF(F22=FALSE,IF(F23=FALSE,\"\",$C23),$C22),$C21)","v":""}]
[null,"C","Hold Point",false,false,false]
[null,"C","N/A",false,false,false]
[null,"D","Witness Point",false,false,false]
[null,"D","Hold Point",false,false,false]
[null,"D","N/A",false,false,false]
[null,"E","Witness Point",false,false,false]
[null,"E","Hold Point",false,false,false]
[null,"E","N/A",false,false,false]
[null,"F","Witness Point",false,false,false]
[null,"F","Hold Point",false,false,false]
[null,"F","N/A",false,false,false]
[null,"G","Witness Point",false,false,false]
[null,"G","Hold Point",false,false,false]
[null,"G","N/A",false,false,false]